bitfinex/quotes_BTCUSD_20250901
["timestamp","ask_amount","ask_price","bid_price","bid_amount"]
[1756698112196,0.00064306,107640.0,107630.0,1.90041503]
[1756698112399,0.00064306,107640.0,107630.0,2.30041503]
[1756698112609,0.1857874,107650.0,107640.0,0.33580453]
[1756698112784,0.1857874,107650.0,107640.0,0.6949939]
[1756698113200,0.1857874,107650.0,107640.0,0.7229059]
[1756698114231,0.1857874,107650.0,107640.0,0.37934137]
[1756698114702,0.1867874,107650.0,107640.0,0.37934137]
[1756698114915,0.1877874,107650.0,107640.0,0.53710137]
[1756698115966,0.1877874,107650.0,107640.0,0.37934137]
[1756698116172,0.1877874,107650.0,107640.0,0.53710137]
[1756698117264,0.1877874,107650.0,107640.0,0.7229059]
[1756698117818,0.1877874,107650.0,107640.0,0.5651459]
[1756698117988,0.1877874,107650.0,107640.0,0.7228659]
[1756698118943,0.1877874,107650.0,107640.0,0.53706137]
[1756698120385,0.1877874,107650.0,107640.0,0.37934137]
[1756698120820,0.1877874,107650.0,107640.0,0.53706137]
[1756698121028,0.1877874,107650.0,107640.0,0.57906402]
[1756698122258,0.1877874,107650.0,107640.0,0.76486855]
[1756698123280,0.002,107650.0,107640.0,1.1011762]
[1756698123452,0.002,107650.0,107640.0,0.76486855]
[1756698123636,0.18778727,107650.0,107640.0,0.76486855]
[1756698126548,0.18778727,107650.0,107640.0,0.42134402]
[1756698126773,0.18778727,107650.0,107640.0,0.57906402]
[1756698127738,0.18778727,107650.0,107640.0,0.62134402]
[1756698127941,0.18778727,107650.0,107640.0,0.96486855]
[1756698128357,0.18778727,107650.0,107640.0,0.77906402]
[1756698128709,0.18778727,107650.0,107640.0,0.96486855]
[1756698129934,0.18778727,107650.0,107640.0,1.3011762]
[1756698130337,0.18778727,107650.0,107640.0,1.11537167]
[1756698131964,0.18778727,107650.0,107640.0,1.3011762]
[1756698132371,0.18778727,107650.0,107640.0,1.11537167]
[1756698135003,0.18778727,107650.0,107640.0,1.3011762]
[1756698135346,0.18778727,107650.0,107640.0,1.11537167]
[1756698135978,0.18778727,107650.0,107640.0,0.62134402]
[1756698136181,0.18778727,107650.0,107640.0,0.77902402]
[1756698139308,0.52409492,107650.0,107640.0,0.57902402]
[1756698139509,0.52409492,107650.0,107640.0,0.27134402]
[1756698139704,0.52409492,107650.0,107640.0,0.72702137]
[1756698141085,0.52409492,107650.0,107640.0,0.56934137]
[1756698141290,0.52409492,107650.0,107640.0,0.72702137]
[1756698142756,0.18778727,107650.0,107640.0,0.72702137]
[1756698142956,0.18778727,107650.0,107640.0,0.68997201]
[1756698143354,0.52409492,107650.0,107640.0,0.68997201]
[1756698143588,0.18778727,107650.0,107640.0,0.83997201]
[1756698144454,0.18778727,107650.0,107640.0,1.36208419]
[1756698145208,0.18778727,107650.0,107640.0,0.83997201]
[1756698150304,0.18778727,107650.0,107640.0,0.68229201]
[1756698150512,0.18778727,107650.0,107640.0,0.83993201]
[1756698153705,0.18778727,107650.0,107640.0,0.68229201]
[1756698153915,0.18778727,107650.0,107640.0,0.83993201]
[1756698154287,0.18778727,107650.0,107640.0,0.68229201]
[1756698154497,0.18778727,107650.0,107640.0,0.83993201]
[1756698158410,0.18778727,107650.0,107640.0,1.17623966]
[1756698158615,0.18778727,107650.0,107640.0,0.83993201]
[1756698160626,0.18778727,107650.0,107640.0,1.02573654]
[1756698161463,0.18778727,107650.0,107640.0,1.36204419]
[1756698161680,0.18778727,107650.0,107640.0,1.01859966]
[1756698162068,0.18778727,107650.0,107640.0,1.17619966]
[1756698162641,0.18778727,107650.0,107640.0,0.83989201]
[1756698164836,0.18778727,107650.0,107640.0,0.68229201]
[1756698165045,0.18778727,107650.0,107640.0,0.83989201]
[1756698166780,0.18778727,107650.0,107640.0,0.68229201]
[1756698167018,0.18778727,107650.0,107640.0,0.83989201]
[1756698169250,0.52409492,107650.0,107640.0,0.83989201]
[1756698169614,0.18778727,107650.0,107640.0,0.83989201]
[1756698172891,0.18778727,107650.0,107640.0,0.83985201]
[1756698180128,0.5237655,107650.0,107640.0,0.83985201]
[1756698180753,0.18778727,107650.0,107640.0,0.83985201]
[1756698181047,0.5237655,107650.0,107640.0,0.83985201]
[1756698181494,0.18778727,107650.0,107640.0,0.83985201]
[1756698183062,0.5237655,107650.0,107640.0,1.03985201]
[1756698187200,0.18778727,107650.0,107640.0,1.03985201]
[1756698188420,0.18778727,107650.0,107640.0,1.37583024]
[1756698192189,0.18778727,107650.0,107640.0,1.33590983]
[1756698194762,0.18778727,107650.0,107640.0,0.9999316]
[1756698195158,0.18778727,107650.0,107640.0,1.33590983]
[1756698197793,0.18778727,107650.0,107640.0,1.33582983]
[1756698198004,0.5237655,107650.0,107640.0,0.9998516]
[1756698198586,0.5237655,107650.0,107640.0,0.8423716]
[1756698198833,0.5237655,107650.0,107640.0,0.9998516]
[1756698200079,0.5237655,107650.0,107640.0,0.6423716]
[1756698200298,0.85974373,107650.0,107640.0,0.596792]
[1756698200499,0.5237655,107650.0,107640.0,0.596792]
[1756698200710,0.18778727,107650.0,107640.0,0.525392]
[1756698200910,0.5237655,107650.0,107640.0,0.525392]
[1756698204468,0.18778727,107650.0,107640.0,0.525392]
[1756698204752,0.18778727,107650.0,107640.0,1.10435024]
[1756698205171,0.18778727,107650.0,107640.0,0.76837201]
[1756698205750,0.5237655,107650.0,107640.0,0.76837201]
[1756698206219,0.5237655,107650.0,107640.0,0.61089201]
[1756698206420,0.5237655,107650.0,107640.0,0.76837201]
[1756698206643,0.18778727,107650.0,107640.0,1.10435024]
[1756698206860,0.18778727,107650.0,107640.0,0.76837201]
[1756698207173,0.5237655,107650.0,107640.0,0.76837201]
[1756698207383,0.18778727,107650.0,107640.0,0.76837201]
[1756698209873,0.18778727,107650.0,107640.0,0.96837201]
[1756698211442,0.18778727,107650.0,107640.0,0.96833201]
[1756698211797,0.18778727,107650.0,107640.0,0.81089201]
[1756698211997,0.18778727,107650.0,107640.0,0.96833201]
[1756698215469,0.18778727,107650.0,107640.0,0.81089201]
[1756698215666,0.18778727,107650.0,107640.0,0.96833201]
[1756698217412,0.18778727,107650.0,107640.0,1.03973201]
[1756698218993,0.18778727,107650.0,107640.0,1.56148612]
[1756698219196,0.002,107650.0,107640.0,1.56148612]
[1756698219432,0.18778727,107650.0,107640.0,1.76148612]
[1756698220262,0.18778727,107650.0,107640.0,1.42549654]
[1756698220469,0.18778727,107650.0,107640.0,1.76144612]
[1756698224870,0.18778727,107650.0,107640.0,1.76140612]
[1756698225073,0.18778727,107650.0,107640.0,1.42545654]
[1756698225343,0.18778727,107650.0,107640.0,1.76140612]
[1756698225745,0.002,107650.0,107640.0,1.76140612]
[1756698226312,0.002,107650.0,107640.0,2.0973557]
[1756698226515,0.80544039,107670.0,107660.0,1.07577001]
[1756698226749,0.80544039,107670.0,107660.0,1.4760396]
[1756698227162,0.80544039,107670.0,107660.0,1.5039476]
[1756698227746,0.80844039,107670.0,107660.0,1.5039476]
[1756698227949,0.81144039,107670.0,107660.0,1.5039476]
[1756698228142,0.81144039,107670.0,107660.0,1.31817759]
[1756698228375,0.80844039,107670.0,107660.0,1.31817759]
[1756698228690,0.80844039,107670.0,107660.0,1.16081759]
[1756698228897,0.80844039,107670.0,107660.0,1.31817759]
[1756698229733,0.80844039,107670.0,107660.0,1.3277242]
[1756698231239,0.80844039,107670.0,107660.0,1.3276842]
[1756698231771,0.80844039,107670.0,107660.0,1.1703642]
[1756698231977,0.80844039,107670.0,107660.0,1.3276842]
[1756698233776,0.79915276,107670.0,107660.0,1.84940379]
[1756698233978,0.79915276,107670.0,107660.0,1.84921426]
[1756698234530,0.79915276,107670.0,107660.0,1.50612425]
[1756698234701,0.79915276,107670.0,107660.0,1.66344425]
[1756698235062,0.79915276,107670.0,107660.0,1.3276842]
[1756698235269,0.79915276,107670.0,107660.0,1.66344425]
[1756698235668,0.79915276,107670.0,107660.0,1.84921426]
[1756698236070,0.79915276,107670.0,107660.0,1.663454]
[1756698236664,0.79915276,107670.0,107660.0,1.3276842]
[1756698237063,0.79915276,107670.0,107660.0,1.663454]
[1756698238093,0.79915276,107670.0,107660.0,1.84922401]
[1756698238298,0.79915276,107670.0,107660.0,1.51345421]
[1756698238639,0.79915276,107670.0,107660.0,1.84922401]
[1756698239986,0.79915276,107670.0,107660.0,1.3276842]
[1756698240227,0.79915276,107670.0,107660.0,1.663414]
[1756698241249,0.79915276,107670.0,107660.0,1.84918401]
[1756698242482,0.6134,107670.0,107660.0,1.84918401]
[1756698243099,0.6134,107670.0,107660.0,1.60575421]
[1756698243259,0.6134,107670.0,107660.0,1.94152401]
[1756698243660,0.6104,107670.0,107660.0,1.94152401]
[1756698243868,0.6114,107670.0,107660.0,1.94152401]
[1756698247157,0.6114,107670.0,107660.0,1.94248401]
[1756698247475,0.79715276,107670.0,107660.0,1.94248401]
[1756698247677,0.6114,107670.0,107660.0,1.94248401]
[1756698248863,0.79715276,107670.0,107660.0,1.94244401]
[1756698249392,0.6114,107670.0,107660.0,1.94244401]
[1756698250037,0.6114,107670.0,107660.0,1.60667421]
[1756698250248,0.6114,107670.0,107660.0,1.94244401]
[1756698252070,0.6114,107670.0,107660.0,1.60667421]
[1756698252254,0.6114,107670.0,107660.0,1.94244401]
[1756698253088,0.6114,107670.0,107660.0,1.44947421]
[1756698253286,0.79715276,107670.0,107660.0,1.94240401]
[1756698253568,0.79715276,107670.0,107660.0,1.60663421]
[1756698253788,0.6114,107670.0,107660.0,1.94240401]
[1756698254601,0.6114,107670.0,107660.0,1.60663421]
[1756698254808,0.6114,107670.0,107660.0,1.94240401]
[1756698257114,0.6114,107670.0,107660.0,1.90535465]
[1756698259605,0.79715276,107670.0,107660.0,1.90535465]
[1756698260011,0.79715276,107670.0,107660.0,2.24104705]
[1756698260991,0.6114,107670.0,107660.0,2.24104705]
[1756698262108,0.79715276,107670.0,107660.0,2.08388705]
[1756698262313,0.79715276,107670.0,107660.0,2.24100705]
[1756698264281,0.79715276,107670.0,107660.0,2.08388705]
[1756698264494,0.79715276,107670.0,107660.0,2.24100705]
[1756698267098,0.6114,107670.0,107660.0,2.24100705]
[1756698267315,0.59614566,107670.0,107660.0,2.57673815]
[1756698267762,0.59614566,107670.0,107660.0,2.97673815]
[1756698269979,0.59614566,107670.0,107660.0,2.64078365]
[1756698270356,0.59614566,107670.0,107660.0,2.64074365]
[1756698271016,0.59614566,107670.0,107660.0,2.90794365]
[1756698273885,0.59614566,107670.0,107660.0,2.92888247]
[1756698274983,0.59614566,107670.0,107660.0,2.77180247]
[1756698275137,0.59614566,107670.0,107660.0,2.92884247]
[1756698276454,0.59614566,107670.0,107660.0,2.59322307]
[1756698279607,0.59614566,107670.0,107660.0,2.43618307]
[1756698279808,0.59614566,107670.0,107660.0,2.59322307]
[1756698281528,0.59614566,107670.0,107660.0,2.43618307]
[1756698281729,0.78189842,107670.0,107660.0,1.87962485]
[1756698281928,0.78189842,107670.0,107660.0,2.37224425]
[1756698282857,0.78189842,107670.0,107660.0,1.54824425]
[1756698283101,0.78189842,107670.0,107660.0,1.70504425]
[1756698283301,0.78189842,107670.0,107660.0,2.10504425]
[1756698283501,0.59614566,107670.0,107660.0,2.10504425]
[1756698283684,0.78189842,107670.0,107660.0,1.94804425]
[1756698283911,0.78189842,107670.0,107660.0,2.10504425]
[1756698286437,0.78189842,107670.0,107660.0,1.70504425]
[1756698287261,0.78189842,107670.0,107660.0,1.36938485]
[1756698287433,0.78189842,107670.0,107660.0,1.70500425]
[1756698287818,0.78189842,107670.0,107660.0,1.02665484]
[1756698288023,0.78189842,107670.0,107660.0,1.70500425]
[1756698288720,0.78189842,107670.0,107660.0,1.18361484]
[1756698290213,0.78189842,107670.0,107660.0,1.70500425]
[1756698290772,0.59614566,107670.0,107660.0,2.04062365]
[1756698291006,0.59614566,107670.0,107660.0,2.26156247]
[1756698291203,0.59614566,107670.0,107660.0,2.66156247]
[1756698292696,0.59614566,107670.0,107660.0,2.32594307]
[1756698293008,0.59614566,107670.0,107660.0,2.42392307]
[1756698293231,0.59614566,107670.0,107660.0,2.32594307]
[1756698294901,0.59614566,107670.0,107660.0,2.59314307]
[1756698297969,0.59614566,107670.0,107660.0,2.55166285]
[1756698300724,0.59614566,107670.0,107660.0,2.88728225]
[1756698301149,0.59614566,107670.0,107660.0,2.92926455]
[1756698301352,0.57435725,107670.0,107660.0,2.92926455]
[1756698302219,0.57335725,107670.0,107660.0,2.92926455]
[1756698302433,0.57335725,107670.0,107660.0,2.43668515]
[1756698302631,0.57435725,107670.0,107660.0,2.25794575]
[1756698302833,0.57335725,107670.0,107660.0,2.92918455]
[1756698303282,0.57335725,107670.0,107660.0,2.93118455]
[1756698303603,0.57335725,107670.0,107660.0,2.92818455]
[1756698304335,0.57335725,107670.0,107660.0,2.59256515]
[1756698304531,0.57335725,107670.0,107660.0,2.59456515]
[1756698305726,0.57335725,107670.0,107660.0,2.59656515]
[1756698307459,0.57335725,107670.0,107660.0,2.43968515]
[1756698307659,0.57335725,107670.0,107660.0,2.59656515]
[1756698307879,0.57335725,107670.0,107660.0,2.43968515]
[1756698308082,0.57335725,107670.0,107660.0,2.81960515]
[1756698309566,0.57335725,107670.0,107660.0,2.81760515]
[1756698309793,0.57335725,107670.0,107660.0,2.81860515]
[1756698310701,0.57335725,107670.0,107660.0,2.81760515]
[1756698311080,0.57335725,107670.0,107660.0,3.15522455]
[1756698313476,0.57335725,107670.0,107660.0,0.50015941]
[1756698313681,0.57335725,107670.0,107660.0,0.91146246]
[1756698314315,0.57335725,107670.0,107660.0,0.57584306]
[1756698314496,0.57335725,107670.0,107660.0,1.31146246]
[1756698315326,0.57335725,107670.0,107660.0,1.25646501]
[1756698315525,0.57335725,107670.0,107660.0,1.77424383]
[1756698316469,0.57335725,107670.0,107660.0,1.77724383]
[1756698316678,0.57335725,107670.0,107660.0,1.62040383]
[1756698316914,0.57335725,107670.0,107660.0,1.77620383]
[1756698317286,0.57335725,107670.0,107660.0,1.77720383]
[1756698317688,0.57335725,107670.0,107660.0,1.61384561]
[1756698317894,0.75911001,107670.0,107660.0,0.8448756]
[1756698318092,0.75911001,107670.0,107660.0,1.03044561]
[1756698318290,0.80911001,107670.0,107660.0,1.03044561]
[1756698318513,0.80911001,107670.0,107660.0,0.6878756]
[1756698318719,1.53034881,107670.0,107660.0,0.121479]
[1756698318894,1.53034881,107670.0,107660.0,0.09258]
[1756698319099,0.23578727,107650.0,107640.0,0.60716453]
[1756698319285,0.23578727,107650.0,107640.0,0.8939939]
[1756698319955,0.57140667,107650.0,107640.0,0.70818937]
[1756698320157,0.57140667,107650.0,107640.0,0.57930037]
[1756698320505,0.62140667,107650.0,107640.0,0.82868037]
[1756698320629,0.62140667,107650.0,107640.0,0.73610037]
[1756698321059,0.62140667,107650.0,107640.0,0.74528026]
[1756698321772,0.62240667,107650.0,107640.0,0.74528026]
[1756698322182,0.62140667,107650.0,107640.0,0.74628026]
[1756698322423,0.62440667,107650.0,107640.0,0.78879346]
[1756698322625,0.62440667,107650.0,107640.0,0.78779346]
[1756698322970,0.62540667,107650.0,107640.0,0.78779346]
[1756698324023,0.62540667,107650.0,107640.0,0.27181357]
[1756698324224,0.62540667,107650.0,107640.0,0.40070257]
[1756698324907,0.62540667,107650.0,107640.0,0.41020109]
[1756698326516,0.28978727,107650.0,107640.0,0.74600562]
[1756698327629,0.28956296,107650.0,107640.0,0.74600562]
[1756698327795,0.28950296,107650.0,107640.0,0.56020109]
[1756698328976,0.62512236,107650.0,107640.0,0.58811509]
[1756698330502,0.28950296,107650.0,107640.0,0.58811509]
[1756698330702,0.62512236,107650.0,107640.0,0.58811509]
[1756698331174,0.62512236,107650.0,107640.0,0.77391962]
[1756698332089,0.28950296,107650.0,107640.0,0.77391962]
[1756698332312,0.43933509,107650.0,107640.0,0.77391962]
[1756698332982,0.10371569,107650.0,107640.0,0.77391962]
[1756698333660,0.28950296,107650.0,107640.0,0.77391962]
[1756698333881,0.10371569,107650.0,107640.0,0.77391962]
[1756698335072,0.62512236,107650.0,107640.0,0.77391962]
[1756698335313,0.43933509,107650.0,107640.0,0.77391962]
[1756698335525,0.10371569,107650.0,107640.0,0.77391962]
[1756698335771,0.44933509,107650.0,107640.0,0.77391962]
[1756698335927,0.06371569,107650.0,107640.0,0.97391962]
[1756698336355,0.06271569,107650.0,107640.0,0.97391962]
[1756698336747,0.06071569,107650.0,107640.0,0.97391962]
[1756698336951,0.06371569,107650.0,107640.0,0.97391962]
[1756698337168,0.06371569,107650.0,107640.0,1.06649962]
[1756698337596,0.014,107650.0,107640.0,1.60649962]
[1756698337985,0.014,107650.0,107640.0,1.44969962]
[1756698338160,0.014,107650.0,107640.0,1.60649962]
[1756698338508,0.014,107650.0,107640.0,1.5970011]
[1756698338709,0.011,107650.0,107640.0,1.5970011]
[1756698338923,0.01,107650.0,107640.0,1.5970011]
[1756698339042,0.012,107650.0,107640.0,1.5970011]
[1756698340647,0.012,107650.0,107640.0,1.60640914]
[1756698341046,0.012,107650.0,107640.0,1.44960914]
[1756698341324,0.012,107650.0,107640.0,1.60640914]
[1756698341676,0.012,107650.0,107640.0,1.94202854]
[1756698342532,0.012,107650.0,107640.0,1.44960914]
[1756698342765,0.012,107650.0,107640.0,1.60640914]
[1756698342967,0.012,107650.0,107640.0,1.94202854]
[1756698343693,0.012,107650.0,107640.0,2.27764794]
[1756698344538,0.012,107650.0,107640.0,2.27760794]
[1756698344739,0.012,107650.0,107640.0,1.94198854]
[1756698345186,0.012,107650.0,107640.0,2.34198854]
[1756698345350,0.014,107650.0,107640.0,2.34198854]
[1756698345971,0.012,107650.0,107640.0,2.34198854]
[1756698346439,0.013,107650.0,107640.0,2.34198854]
[1756698347235,0.013,107650.0,107640.0,2.00636914]
[1756698347406,0.013,107650.0,107640.0,2.34198854]
[1756698348234,0.013,107650.0,107640.0,2.67760794]
[1756698348408,0.011,107650.0,107640.0,2.67760794]
[1756698348612,0.011,107650.0,107640.0,2.34198854]
[1756698348964,0.012,107650.0,107640.0,2.69854676]
[1756698349310,0.012,107650.0,107640.0,2.6614974]
[1756698349750,0.012,107650.0,107640.0,2.5047374]
[1756698349965,0.012,107650.0,107640.0,2.6614574]
[1756698351142,0.011,107650.0,107640.0,2.6614574]
[1756698351344,0.01,107650.0,107640.0,2.6614574]
[1756698351845,0.01,107650.0,107640.0,2.6634574]
[1756698352284,0.01,107650.0,107640.0,2.5077374]
[1756698352430,0.01,107650.0,107640.0,2.6644574]
[1756698353144,0.01,107650.0,107640.0,2.5077374]
[1756698353355,0.01,107650.0,107640.0,2.6644574]
[1756698353769,1e-08,107650.0,107640.0,1.9932186]
[1756698353975,1e-08,107650.0,107640.0,2.6644574]
[1756698356900,1e-08,107650.0,107640.0,2.5077374]
[1756698357106,1e-08,107650.0,107640.0,2.6644574]
[1756698359282,1e-08,107650.0,107640.0,2.92184171]
[1756698359886,0.57335725,107670.0,107660.0,0.73577001]
[1756698360113,0.57335725,107670.0,107660.0,1.52207878]
[1756698360379,0.57335725,107670.0,107660.0,1.36539878]
[1756698360573,0.57335725,107670.0,107660.0,1.92207878]
[1756698361142,0.57335725,107670.0,107660.0,1.79329878]
[1756698361341,0.57435725,107670.0,107660.0,1.61435938]
[1756698361545,0.57435725,107670.0,107660.0,1.79329878]
[1756698361747,0.57435725,107670.0,107660.0,1.94997878]
[1756698361950,0.57435725,107670.0,107660.0,1.79329878]
[1756698362152,0.57535725,107670.0,107660.0,1.94997878]
[1756698363175,0.57535725,107670.0,107660.0,1.79329878]
[1756698363393,0.57535725,107670.0,107660.0,1.94997878]
[1756698365848,0.57535725,107670.0,107660.0,1.9709176]
[1756698366068,0.57535725,107670.0,107660.0,2.646537]
[1756698366500,0.57535725,107670.0,107660.0,2.1542376]
[1756698366704,0.57535725,107670.0,107660.0,2.3109176]
[1756698366912,0.57535725,107670.0,107660.0,2.44523025]
[1756698367123,0.57535725,107670.0,107660.0,2.42662025]
[1756698367345,0.57435725,107670.0,107660.0,2.42662025]
[1756698367571,0.57335725,107670.0,107660.0,2.42662025]
[1756698367993,0.57335725,107670.0,107660.0,2.42762025]
[1756698368622,0.57335725,107670.0,107660.0,2.76323965]
[1756698368903,0.13898142,107670.0,107660.0,3.02033965]
[1756698369201,0.13898142,107670.0,107660.0,3.02062396]
[1756698370904,0.0004,107680.0,107670.0,0.54669158]
[1756698371027,0.0004,107680.0,107670.0,1.78321039]
[1756698371452,0.0004,107680.0,107670.0,2.18321039]
[1756698371890,0.0004,107680.0,107670.0,2.45071039]
[1756698372102,0.00244763,107680.0,107670.0,2.19361039]
[1756698372518,0.0004,107690.0,107680.0,0.73573551]
[1756698372724,0.0004,107690.0,107680.0,1.8829031]
[1756698373185,0.0004,107690.0,107680.0,2.3666261]
[1756698373406,0.0004,107690.0,107680.0,2.3107961]
[1756698374718,0.0004,107690.0,107680.0,2.3137961]
[1756698375269,0.0004,107690.0,107680.0,2.6494155]
[1756698375525,0.0004,107690.0,107680.0,2.3137961]
[1756698375737,0.0004,107690.0,107680.0,2.6514155]
[1756698376129,0.0004,107690.0,107680.0,2.3157961]
[1756698376777,0.0004,107690.0,107680.0,2.1591561]
[1756698376961,0.0004,107690.0,107680.0,2.3157561]
[1756698377119,0.0004,107690.0,107680.0,2.3343661]
[1756698377835,0.0004,107690.0,107680.0,2.5914661]
[1756698378315,0.0104,107700.0,107690.0,0.54665708]
[1756698378532,0.0004,107730.0,107720.0,1.07566654]
[1756698378690,0.00087645,107730.0,107720.0,1.76927531]
[1756698378898,0.00087645,107730.0,107720.0,1.79716231]
[1756698379103,0.00087645,107730.0,107720.0,1.46154291]
[1756698379317,0.00087645,107730.0,107720.0,1.79716231]
[1756698379727,0.00387645,107730.0,107720.0,1.30494291]
[1756698379920,0.00387645,107730.0,107720.0,1.46154291]
[1756698380297,0.00587645,107730.0,107720.0,1.79716231]
[1756698382112,0.00587645,107730.0,107720.0,1.81412551]
[1756698382315,0.00587645,107730.0,107720.0,1.52102537]
[1756698382523,0.00587645,107730.0,107720.0,1.92098537]
[1756698382729,0.00587645,107730.0,107720.0,2.34918477]
[1756698382927,0.00287645,107730.0,107720.0,2.01356537]
[1756698383188,0.00087645,107730.0,107720.0,2.34918477]
[1756698383553,0.00287645,107730.0,107720.0,2.34918477]
[1756698383955,0.00287645,107730.0,107720.0,2.19262477]
[1756698384173,0.00287645,107730.0,107720.0,1.85700537]
[1756698384399,0.00587645,107730.0,107720.0,2.34918477]
[1756698384865,0.00287645,107730.0,107720.0,2.34918477]
[1756698385069,0.00287645,107730.0,107720.0,2.01356537]
[1756698385253,0.00287645,107730.0,107720.0,2.34918477]
[1756698385457,0.00087645,107730.0,107720.0,2.34918477]
[1756698385695,0.00087645,107730.0,107720.0,2.19262477]
[1756698385894,0.00087645,107730.0,107720.0,2.34918477]
[1756698386056,0.00087645,107730.0,107720.0,1.85700537]
[1756698386472,0.00087645,107730.0,107720.0,2.01356537]
[1756698387210,0.00187645,107730.0,107720.0,2.01356537]
[1756698387749,0.00387645,107730.0,107720.0,2.01356537]
[1756698387954,0.00187645,107730.0,107720.0,2.01356537]
[1756698388287,0.00187645,107730.0,107720.0,2.34918477]
[1756698388678,0.00087645,107730.0,107720.0,2.34914477]
[1756698389879,0.00087645,107730.0,107720.0,2.37008359]
[1756698390958,0.00087645,107730.0,107720.0,2.92870299]
[1756698391586,0.00087645,107730.0,107720.0,2.59308359]
[1756698392259,0.00187645,107730.0,107720.0,2.59308359]
[1756698392684,0.00087645,107730.0,107720.0,2.59308359]
[1756698393115,0.00087645,107730.0,107720.0,2.25746419]
[1756698393338,0.00087645,107730.0,107720.0,2.64891359]
[1756698393553,0.00087645,107730.0,107720.0,2.59308359]
[1756698395986,0.00087645,107730.0,107720.0,2.59304359]
[1756698396571,0.00087645,107730.0,107720.0,2.43656359]
[1756698396795,0.00021428,107730.0,107720.0,2.19304359]
[1756698397186,0.00021428,107730.0,107720.0,2.39304359]
[1756698399021,0.00021428,107730.0,107720.0,2.23656359]
[1756698399201,0.00021428,107730.0,107720.0,2.39304359]
[1756698399639,0.00021428,107730.0,107720.0,2.37210477]
[1756698400303,0.00021428,107730.0,107720.0,1.54000537]
[1756698400523,0.00021428,107730.0,107720.0,1.31700537]
[1756698400728,0.28557927,107730.0,107720.0,0.88781883]
[1756698400946,0.28557927,107730.0,107720.0,0.79523883]
[1756698401160,0.28557927,107730.0,107720.0,0.63875883]
[1756698401368,0.28557927,107730.0,107720.0,0.79523883]
[1756698401787,0.28757927,107730.0,107720.0,0.79523883]
[1756698402003,0.29057927,107730.0,107720.0,0.79523883]
[1756698402434,0.28857927,107730.0,107720.0,0.79523883]
[1756698402657,0.62619867,107730.0,107720.0,0.39390863]
[1756698402859,0.62619867,107730.0,107720.0,0.55038863]
[1756698403263,0.28757927,107730.0,107720.0,0.55038863]
[1756698403486,0.29057927,107730.0,107720.0,0.55038863]
[1756698404090,0.29057927,107730.0,107720.0,0.5672379]
[1756698404297,0.29057927,107730.0,107720.0,0.4107579]
[1756698404503,0.62619867,107730.0,107720.0,0.53945956]
[1756698404938,0.62619867,107730.0,107720.0,0.52261029]
[1756698405295,0.62619867,107730.0,107720.0,0.36613029]
[1756698405498,0.62619867,107730.0,107720.0,0.27963028]
[1756698406349,0.62619867,107730.0,107720.0,0.20827028]
[1756698407099,0.62619867,107730.0,107720.0,0.00927102]
[1756698407338,0.62619867,107730.0,107720.0,0.16575102]
[1756698407746,0.96181807,107730.0,107720.0,0.00927102]
[1756698407925,0.62619867,107730.0,107720.0,0.16575102]
[1756698408282,0.29057927,107730.0,107720.0,0.16575102]
[1756698408692,0.29057927,107730.0,107720.0,0.19352936]
[1756698408892,0.29057927,107730.0,107720.0,0.15648]
[1756698409317,0.62619867,107730.0,107720.0,0.15648]
[1756698410783,0.62619867,107730.0,107710.0,0.20221289]
[1756698410784,0.09971569,107720.0,107710.0,0.20221289]
[1756698411039,0.09971569,107720.0,107710.0,0.95914375]
[1756698411239,0.09971569,107720.0,107710.0,0.62352435]
[1756698411920,0.28768965,107720.0,107710.0,0.43784071]
[1756698412111,0.28638223,107720.0,107710.0,0.43920071]
[1756698412323,0.28638223,107720.0,107710.0,0.96050389]
[1756698412531,0.28638223,107720.0,107710.0,0.62488449]
[1756698412974,0.28838223,107720.0,107710.0,0.62488449]
[1756698413681,0.10271569,107720.0,107710.0,0.43920071]
[1756698414771,0.10271569,107720.0,107710.0,0.77482011]
[1756698415412,0.05271569,107720.0,107710.0,0.77482011]
[1756698415614,0.003,107720.0,107710.0,0.77482011]
[1756698415812,0.003,107720.0,107710.0,1.20271111]
[1756698415953,0.003,107720.0,107710.0,1.54271111]
[1756698416151,0.00062278,107720.0,107710.0,1.14271111]
[1756698416517,0.05033847,107720.0,107710.0,1.14271111]
[1756698416669,0.00062278,107720.0,107710.0,1.14271111]
[1756698417073,0.04992997,107730.0,107720.0,0.35]
[1756698417316,0.04992997,107730.0,107720.0,0.94253941]
[1756698417718,0.09992997,107730.0,107720.0,0.60692001]
[1756698417919,0.09992997,107730.0,107720.0,0.94253941]
[1756698418893,0.09992997,107730.0,107720.0,0.25142001]
[1756698419184,0.10092997,107730.0,107720.0,0.27931001]
[1756698419985,0.09992997,107730.0,107720.0,0.27931001]
[1756698420378,0.10192997,107730.0,107720.0,0.27931001]
[1756698420577,0.10292997,107730.0,107720.0,0.27931001]
[1756698421009,0.10092997,107730.0,107720.0,0.37219001]
[1756698422381,0.10192997,107730.0,107720.0,0.37219001]
[1756698423320,0.10192997,107730.0,107720.0,0.70780941]
[1756698424296,0.10192997,107730.0,107720.0,0.54936941]
[1756698424668,0.10192997,107730.0,107720.0,0.37343001]
[1756698425394,0.10192997,107730.0,107720.0,0.21375001]
[1756698425613,0.10423739,107730.0,107720.0,0.37339001]
[1756698425810,0.10423739,107730.0,107720.0,0.25244]
[1756698425811,0.43985679,107730.0,107720.0,0.25244]
[1756698426177,0.43754937,107730.0,107720.0,0.09288]
[1756698426388,0.43754937,107730.0,107720.0,0.25244]
[1756698426794,0.43754937,107730.0,107720.0,0.09288]
[1756698426971,0.14572491,107730.0,107720.0,0.25248]
[1756698427175,0.43754937,107730.0,107720.0,0.25248]
[1756698427378,0.43754937,107730.0,107720.0,0.09288]
[1756698427614,0.43754937,107730.0,107720.0,0.25248]
[1756698430777,0.62319867,107730.0,107720.0,0.25248]
[1756698431373,0.62319867,107730.0,107720.0,0.86674595]
[1756698431374,0.10192997,107730.0,107720.0,0.86674595]
[1756698431579,0.08682733,107730.0,107720.0,0.86674595]
[1756698431909,0.08682733,107730.0,107720.0,0.55901655]
[1756698432110,0.08913475,107730.0,107720.0,0.55901655]
[1756698433780,0.08913475,107730.0,107720.0,0.89463595]
[1756698433994,0.08682733,107730.0,107720.0,0.89463595]
[1756698434205,0.08913475,107730.0,107720.0,0.89463595]
[1756698434831,0.08913475,107730.0,107720.0,0.55901655]
[1756698435644,0.08682733,107730.0,107720.0,0.55901655]
[1756698435846,0.08913475,107730.0,107720.0,0.55901655]
[1756698436995,0.08913475,107730.0,107720.0,0.53112655]
[1756698437825,0.08913475,107730.0,107720.0,0.86674595]
[1756698438031,0.08913475,107730.0,107720.0,0.53112655]
[1756698438235,0.08913475,107730.0,107720.0,0.86674595]
[1756698439462,0.08913475,107730.0,107720.0,0.53112655]
[1756698440661,0.08682733,107730.0,107720.0,0.53112655]
[1756698440870,0.08682733,107730.0,107720.0,0.86674595]
[1756698441253,0.08682733,107730.0,107720.0,0.89463695]